lending/lending_fUSD_20250114
["ID","MTS","AMOUNT","RATE_DAILY","PERIOD"]
[348936700,1736879443846,-1187.83,0.00010235,2]
[348936702,1736879443855,-1353.7,0.00010235,2]
[348936705,1736879443865,-1176.69,0.00010235,2]
[348936708,1736879443874,-500.0,0.00010235,2]
[348936711,1736879443883,-657.51,0.00010235,2]
[348936714,1736879443893,-1766.97,0.00010235,2]
[348936717,1736879443902,-669.78,0.00010235,2]
[348936720,1736879443912,-549.61,0.00010235,2]
[348936723,1736879443921,-848.12,0.00010235,2]
[348936726,1736879443931,-807.49,0.00010235,2]
[348936729,1736879443940,-500.0,0.00010235,2]
[348936731,1736879443949,-500.0,0.00010235,2]
[348936734,1736879443958,-524.86,0.00010235,2]
[348936736,1736879443967,-603.18,0.00010262,2]
[348936738,1736879443977,-500.0,0.00010262,2]
[348936740,1736879443987,-500.0,0.00010262,2]
[348936742,1736879443997,-542.61364745,0.00010262,2]
[348936744,1736879444006,-500.0,0.00010262,2]
[348936746,1736879444015,-500.0,0.00010262,2]
[348936748,1736879444024,-500.0,0.00010262,2]
[348936750,1736879444033,-500.0,0.00010262,2]
[348936752,1736879444043,-282.64079148,0.00010262,2]
[348936753,1736879444053,-500.0,0.00010262,2]
[348936755,1736879444062,-500.0,0.00010262,2]
[348936757,1736879444072,-500.0,0.00010262,2]
[348936759,1736879444081,-500.0,0.00010262,2]
[348936761,1736879444093,-500.0,0.00010262,2]
[348936763,1736879444103,-500.0,0.00010262,2]
[348936765,1736879444112,-500.0,0.00010262,2]
[348936767,1736879444121,-500.0,0.00010262,2]
[348936769,1736879444130,-500.0,0.00010262,2]
[348936771,1736879444139,-854.81,0.00010262,2]
[348936773,1736879444149,-500.0,0.00010262,2]
[348936775,1736879444159,-500.0,0.00010262,2]
[348936777,1736879444168,-500.0,0.00010262,2]
[348936779,1736879444178,-597.05,0.00010262,2]
[348936781,1736879444187,-500.0,0.00010262,2]
[348936783,1736879444196,-825.83,0.00010262,2]
[348936785,1736879444205,-500.0,0.00010262,2]
[348936787,1736879444215,-500.0,0.00010262,2]
[348936789,1736879444224,-500.0,0.00010262,2]
[348936791,1736879444233,-500.0,0.00010262,2]
[348936792,1736879444243,-500.0,0.00010262,2]
[348936794,1736879444252,-682.77,0.00010262,2]
[348936796,1736879444262,-500.0,0.00010262,2]
[348936798,1736879444271,-344.23528971,0.00010262,2]
[348936801,1736879444283,-155.76471029,0.00010262,2]
[348936803,1736879444293,-500.36529856,0.00010262,2]
[348936805,1736879444303,-619.11,0.00010262,2]
[348936807,1736879444312,-500.25810459,0.00010262,2]
[348936809,1736879444321,-500.0,0.00010262,2]
[348936811,1736879444330,-539.66188656,0.00010262,2]
[348936812,1736879444341,-500.0,0.00010262,2]
[348936814,1736879444350,-500.0,0.00010262,2]
[348936816,1736879444359,-500.0,0.00010262,2]
[348936818,1736879444368,-500.0,0.00010262,2]
[348936820,1736879444378,-23.80326073,0.00010262,2]
[348936822,1736879444389,-476.19673927,0.00010262,2]
[348936824,1736879444399,-533.51,0.00010262,2]
[348936826,1736879444407,-500.0,0.00010262,2]
[348936828,1736879444418,-500.48324217,0.00010262,2]
[348936830,1736879444426,-69.17115508,0.00010262,2]
[348936832,1736879444438,-442.77884492,0.00010262,2]
[348936834,1736879444447,-500.0,0.00010262,2]
[348936836,1736879444455,-1094.69,0.00010262,2]
[348936838,1736879444465,-500.0,0.00010262,2]
[348936840,1736879444474,-500.0,0.00010262,2]
[348936842,1736879444483,-500.47584541,0.00010262,2]
[348936844,1736879444494,-207.03030967,0.00010262,2]
[348936846,1736879444505,-292.96969033,0.00010262,2]
[348936848,1736879444515,-500.0,0.00010262,2]
[348936850,1736879444524,-500.0,0.00010262,2]
[348936852,1736879444533,-500.0,0.00010262,2]
[348936854,1736879444543,-54.77624567,0.00010262,2]
[348936856,1736879444555,-445.22375433,0.00010262,2]
[348936858,1736879444564,-603.44,0.00010262,2]
[348936860,1736879444573,-500.0,0.00010262,2]
[348936862,1736879444582,-500.0,0.00010262,2]
[348936864,1736879444593,-500.0,0.00010262,2]
[348936866,1736879444605,-500.0,0.00010262,2]
[348936868,1736879444614,-500.0,0.00010262,2]
[348936870,1736879444623,-500.0,0.00010262,2]
[348936872,1736879444633,-500.23054529,0.00010262,2]
[348936873,1736879444642,-500.0,0.00010262,2]
[348936875,1736879444652,-500.0,0.00010262,2]
[348936877,1736879444662,-631.95593174,0.00010262,2]
[348936879,1736879444673,-500.0,0.00010262,2]
[348936881,1736879444683,-500.0,0.00010262,2]
[348936883,1736879444692,-500.0,0.00010262,2]
[348936885,1736879444701,-500.0,0.00010262,2]
[348936887,1736879444711,-500.55249808,0.00010262,2]
[348936889,1736879444720,-500.0,0.00010262,2]
[348936891,1736879444730,-913.33201566,0.00010262,2]
[348936893,1736879444741,-1206.83798434,0.00010262,2]
[348936895,1736879444751,-500.0,0.00010262,2]
[348936897,1736879444761,-500.0,0.00010262,2]
[348936899,1736879444770,-500.0,0.00010262,2]
[348936901,1736879444780,-500.0,0.00010262,2]
[348936903,1736879444789,-616.52534002,0.00010262,2]
[348936905,1736879444800,-500.0,0.00010262,2]
[348936907,1736879444809,-354.23667563,0.00010262,2]
[348936909,1736879444820,-145.76332437,0.00010262,2]
[348936911,1736879444830,-598.15,0.00010262,2]
[348936913,1736879444839,-500.0,0.00010262,2]
[348936915,1736879444848,-500.0,0.00010262,2]
[348936917,1736879444858,-500.0,0.00010262,2]
[348936919,1736879444867,-500.0,0.00010262,2]
[348936920,1736879444876,-500.0,0.00010262,2]
[348936922,1736879444887,-500.0,0.00010262,2]
[348936925,1736879444897,-1182.41,0.00010262,2]
[348936926,1736879444906,-500.0,0.00010262,2]
[348936928,1736879444916,-500.0,0.00010262,2]
[348936930,1736879444925,-500.0,0.00010262,2]
[348936932,1736879444934,-500.0,0.00010262,2]
[348936934,1736879444943,-588.47,0.00010262,2]
[348936936,1736879444955,-207.31501109,0.00010262,2]
[348936938,1736879444965,-500.0,0.00010262,2]
[348936940,1736879444975,-1064.81,0.00010262,2]
[348936942,1736879444984,-554.369229,0.00010262,2]
[348936944,1736879444993,-500.0,0.00010262,2]
[348936946,1736879445002,-503.52,0.00010262,2]
[348936948,1736879445013,-500.0,0.00010262,2]
[348936950,1736879445022,-500.0,0.00010262,2]
[348936952,1736879445031,-500.0,0.00010262,2]
[348936954,1736879445042,-500.0,0.00010262,2]
[348936956,1736879445051,-500.0,0.00010262,2]
[348936958,1736879445061,-528.358021,0.00010262,2]
[348936960,1736879445070,-2534.14,0.00010262,2]
[348936962,1736879445080,-500.0,0.00010262,2]
[348936964,1736879445090,-500.0,0.00010262,2]
[348936966,1736879445099,-500.0,0.00010262,2]
[348936968,1736879445109,-500.0,0.00010262,2]
[348936970,1736879445118,-403.10155582,0.00010262,2]
[348936972,1736879445127,-336.59285872,0.00010262,2]
[348936975,1736879445138,-163.40714128,0.00010262,2]
[348936976,1736879445148,-500.0,0.00010262,2]
[348936978,1736879445157,-302.25477072,0.00010262,2]
[348936981,1736879445168,-197.74522928,0.00010262,2]
[348936983,1736879445177,-192.01477072,0.00010262,2]
[348936985,1736879445188,-307.98522928,0.00010262,2]
[348936987,1736879445197,-500.0,0.00010262,2]
[348936989,1736879445206,-1089.55,0.00010262,2]
[348936991,1736879445215,-605.91506726,0.00010262,2]
[348936993,1736879445225,-1041.18,0.00010262,2]
[348936995,1736879445234,-500.0,0.00010262,2]
[348936996,1736879445243,-500.0,0.00010262,2]
[348936998,1736879445252,-500.0,0.00010262,2]
[348937000,1736879445261,-500.0,0.00010262,2]
[348937002,1736879445270,-571.06,0.00010262,2]
[348937004,1736879445281,-500.0,0.00010262,2]
[348937006,1736879445292,-500.0,0.00010262,2]
[348937008,1736879445301,-500.0,0.00010262,2]
[348937010,1736879445310,-500.0,0.00010262,2]
[348937012,1736879445319,-877.37,0.00010262,2]
[348937014,1736879445329,-500.0,0.00010262,2]
[348937016,1736879445338,-500.0,0.00010262,2]
[348937018,1736879445348,-2649.7,0.00010262,2]
[348937020,1736879445357,-500.0,0.00010262,2]
[348937022,1736879445366,-557.16,0.00010262,2]
[348937024,1736879445375,-500.0,0.00010262,2]
[348937026,1736879445385,-500.0,0.00010262,2]
[348937028,1736879445393,-500.0,0.00010262,2]
[348937030,1736879445404,-500.0,0.00010262,2]
[348937032,1736879445413,-500.0,0.00010262,2]
[348937034,1736879445422,-500.0,0.00010262,2]
[348937036,1736879445431,-500.0,0.00010262,2]
[348937038,1736879445440,-500.0,0.00010262,2]
[348937040,1736879445449,-500.0,0.00010262,2]
[348937042,1736879445458,-906.53,0.00010262,2]
[348937043,1736879445467,-500.0,0.00010262,2]
[348937045,1736879445476,-500.0,0.00010262,2]
[348937047,1736879445486,-3716.94,0.00010262,2]
[348937049,1736879445496,-500.0,0.00010262,2]
[348937051,1736879445506,-500.0,0.00010262,2]
[348937053,1736879445515,-500.0,0.00010262,2]
[348937055,1736879445525,-500.0,0.00010262,2]
[348937057,1736879445534,-500.0,0.00010262,2]
[348937059,1736879445545,-606.14,0.00010262,2]
[348937061,1736879445554,-500.0,0.00010262,2]
[348937063,1736879445563,-500.0,0.00010262,2]
[348937065,1736879445573,-500.0,0.00010262,2]
[348937067,1736879445582,-500.0,0.00010262,2]
[348937069,1736879445594,-500.0,0.00010262,2]
[348937071,1736879445604,-495.07382589,0.00010262,2]
[348937073,1736879445613,-500.0,0.00010262,2]
[348937075,1736879445623,-2327.72,0.00010262,2]
[348937077,1736879445632,-500.0,0.00010262,2]
[348937078,1736879445642,-500.0,0.00010262,2]
[348937081,1736879445653,-1741.34,0.00010262,2]
[348937082,1736879445663,-500.0,0.00010262,2]
[348937084,1736879445673,-500.0,0.00010262,2]
[348937087,1736879445684,-500.0,0.00010262,2]
[348937088,1736879445694,-500.0,0.00010262,2]
[348937090,1736879445704,-2158.07,0.00010262,2]
[348937092,1736879445713,-500.0,0.00010262,2]
[348937094,1736879445722,-500.0,0.00010262,2]
[348937096,1736879445731,-5901.49,0.00010263,2]
[348937098,1736879445740,-500.0,0.00010263,2]
[348937100,1736879445750,-652.62,0.00010263,2]
[348937102,1736879445760,-817.4,0.00010263,2]
[348937104,1736879445770,-785.75,0.00010263,2]
[348937106,1736879445779,-1189.18,0.00010263,2]
[348937108,1736879445789,-500.0,0.00010267,2]
[348937110,1736879445799,-394.91864599,0.00010267,2]
[348937112,1736879445811,-605.08135401,0.00010267,2]
[348937114,1736879445820,-691.0,0.00010267,2]
[348937116,1736879445829,-265.19890542,0.00010267,2]
[348937118,1736879445841,-234.80109458,0.00010267,2]
[348937120,1736879445850,-752.20890542,0.00010267,2]
[348937123,1736879445866,-305.95052,0.00010267,2]
[348937158,1736879446301,-1466.71,9.989e-05,2]
[348937159,1736879446311,-500.0,9.997e-05,2]
[348937160,1736879446320,-500.0,0.00010262,2]
[348937161,1736879446329,-160.169735,0.00010262,2]
[348937162,1736879446339,-1466.71,0.00010263,2]
[348937163,1736879446349,-622.12057458,0.00010267,2]
[348937164,1736879446358,-818.45,0.00010267,2]
[348937165,1736879446367,-243.03825986,0.00010271,2]
[348937166,1736879446377,-500.0,0.00010271,2]
[348937167,1736879446387,-500.0,0.00010271,2]
[348937168,1736879446397,-500.0,0.00010271,2]
[348937169,1736879446407,-501.26580517,0.00010271,2]
[348937170,1736879446416,-500.0,0.00010271,2]
[348937171,1736879446425,-480.38089633,0.00010271,2]
[348937172,1736879446434,-507.78403963,0.00010271,2]
[348937173,1736879446444,-500.97864446,0.00010271,2]
[348937174,1736879446453,-468.53758332,0.00010271,2]
[348937175,1736879446463,-501.07829918,0.00010271,2]
[348937176,1736879446472,-500.0,0.00010271,2]
[348937177,1736879446482,-500.0,0.00010271,2]
[348937178,1736879446491,-501.56215492,0.00010271,2]
[348937179,1736879446500,-500.0,0.00010271,2]
[348937180,1736879446510,-500.0,0.00010271,2]
[348937181,1736879446519,-500.42376108,0.00010271,2]
[348937182,1736879446528,-500.0,0.00010271,2]
[348937183,1736879446537,-500.0,0.00010271,2]
[348937184,1736879446547,-500.0,0.00010271,2]
[348937185,1736879446556,-500.0,0.00010271,2]
[348937186,1736879446566,-501.69417201,0.00010271,2]
[348937187,1736879446575,-500.0,0.00010271,2]
[348937188,1736879446586,-500.0,0.00010271,2]
[348937189,1736879446601,-500.0,0.00010271,2]
[348937190,1736879446611,-500.0,0.00010271,2]
[348937191,1736879446621,-500.0,0.00010271,2]
[348937192,1736879446635,-500.0,0.00010271,2]
[348937193,1736879446645,-500.0,0.00010271,2]
[348937194,1736879446655,-500.0,0.00010271,2]
[348937195,1736879446665,-500.0,0.00010271,2]
[348937196,1736879446675,-500.0,0.00010271,2]
[348937197,1736879446685,-500.0,0.00010271,2]
[348937198,1736879446695,-500.0,0.00010271,2]
[348937199,1736879446705,-502.87476673,0.00010271,2]
[348937200,1736879446714,-500.0,0.00010271,2]
[348937201,1736879446723,-500.0,0.00010271,2]
[348937202,1736879446733,-500.0,0.00010271,2]
[348937203,1736879446743,-500.6025814,0.00010271,2]
[348937204,1736879446753,-500.0,0.00010271,2]
[348937205,1736879446764,-500.0,0.00010271,2]
[348937206,1736879446774,-500.0,0.00010271,2]
[348937207,1736879446784,-500.0,0.00010271,2]
[348937208,1736879446795,-501.98618259,0.00010271,2]
[348937209,1736879446805,-500.0,0.00010271,2]
[348937210,1736879446815,-500.0,0.00010271,2]
[348937211,1736879446824,-500.0,0.00010271,2]
[348937212,1736879446834,-500.0,0.00010271,2]
[348937214,1736879446844,-500.0,0.00010271,2]
[348937215,1736879446854,-500.0,0.00010271,2]
[348937217,1736879446863,-500.57247062,0.00010271,2]
[348937218,1736879446872,-500.0,0.00010271,2]
[348937219,1736879446882,-500.0,0.00010271,2]
[348937220,1736879446891,-151.91259763,0.00010271,2]
[348937221,1736879446900,-500.0,0.00010271,2]
[348937222,1736879446910,-500.0,0.00010271,2]
[348937223,1736879446920,-500.0,0.00010271,2]
[348937224,1736879446929,-501.49831813,0.00010271,2]
[348937225,1736879446939,-500.0,0.00010271,2]
[348937226,1736879446948,-400.0,0.00010271,2]
[348937227,1736879446961,-500.0,0.00010271,2]
[348937228,1736879446970,-500.0,0.00010271,2]
[348937229,1736879446980,-500.0,0.00010271,2]
[348937230,1736879446989,-500.0,0.00010271,2]
[348937231,1736879446998,-500.0,0.00010271,2]
[348937232,1736879447008,-500.61658612,0.00010271,2]
[348937233,1736879447017,-500.0,0.00010271,2]
[348937234,1736879447026,-500.0,0.00010271,2]
[348937235,1736879447035,-500.0,0.00010271,2]
[348937236,1736879447046,-500.0,0.00010271,2]
[348937237,1736879447055,-500.0,0.00010271,2]
[348937238,1736879447065,-500.0,0.00010271,2]
[348937239,1736879447074,-500.0,0.00010271,2]
[348937240,1736879447084,-500.0,0.00010271,2]
[348937241,1736879447096,-597.04,0.00010271,2]
[348937242,1736879447106,-500.0,0.00010271,2]
[348937243,1736879447115,-500.0,0.00010271,2]
[348937244,1736879447125,-500.0,0.00010271,2]
[348937245,1736879447134,-500.0,0.00010271,2]
[348937246,1736879447144,-500.0,0.00010271,2]
[348937247,1736879447153,-500.0,0.00010271,2]
[348937248,1736879447163,-541.07160664,0.00010271,2]
[348937249,1736879447172,-500.0,0.00010271,2]
[348937250,1736879447182,-500.0,0.00010271,2]
[348937251,1736879447191,-500.0,0.00010271,2]
[348937252,1736879447201,-500.0,0.00010271,2]
[348937253,1736879447210,-456.7203246,0.00010271,2]
[348937254,1736879447225,-43.2796754,0.00010271,2]
[348937255,1736879447235,-500.0,0.00010271,2]
[348937256,1736879447244,-500.0,0.00010271,2]
[348937257,1736879447254,-500.0,0.00010271,2]
[348937258,1736879447263,-500.0,0.00010271,2]
[348937259,1736879447272,-500.0,0.00010271,2]
[348937260,1736879447282,-500.0,0.00010271,2]
[348937261,1736879447292,-500.0,0.00010271,2]
[348937262,1736879447301,-500.0,0.00010271,2]
[348937263,1736879447310,-500.0,0.00010271,2]
[348937264,1736879447322,-500.0,0.00010271,2]
[348937265,1736879447333,-502.75939043,0.00010271,2]
[348937266,1736879447343,-500.0,0.00010271,2]
[348937267,1736879447353,-498.56423074,0.00010271,2]
[348937268,1736879447363,-500.0,0.00010271,2]
[348937269,1736879447373,-500.0,0.00010271,2]
[348937270,1736879447383,-500.0,0.00010271,2]
[348937271,1736879447394,-513.34,0.00010271,2]
[348937272,1736879447404,-500.0,0.00010271,2]
[348937273,1736879447413,-500.0,0.00010271,2]
[348937274,1736879447424,-500.0,0.00010271,2]
[348937275,1736879447434,-500.0,0.00010271,2]
[348937276,1736879447443,-500.0,0.00010271,2]
[348937277,1736879447452,-500.0,0.00010271,2]
[348937278,1736879447461,-500.0,0.00010271,2]
[348937279,1736879447469,-500.0,0.00010271,2]
[348937280,1736879447480,-548.05,0.00010271,2]
[348937281,1736879447490,-500.0,0.00010271,2]
[348937282,1736879447499,-500.0,0.00010271,2]
[348937283,1736879447509,-500.0,0.00010271,2]
[348937284,1736879447519,-500.0,0.00010271,2]
[348937285,1736879447528,-184.10546384,0.00010271,2]
[348937286,1736879447538,-500.0,0.00010271,2]
[348937287,1736879447549,-500.0,0.00010271,2]
[348937288,1736879447558,-500.0,0.00010271,2]
[348937289,1736879447567,-508.39829676,0.00010271,2]
[348937290,1736879447577,-500.0,0.00010271,2]
[348937291,1736879447587,-500.0,0.00010271,2]
[348937292,1736879447598,-500.0,0.00010271,2]
[348937293,1736879447608,-500.0,0.00010271,2]
[348937294,1736879447617,-510.16374201,0.00010271,2]
[348937295,1736879447627,-396.70948976,0.00010271,2]
[348937296,1736879447636,-500.0,0.00010271,2]
[348937297,1736879447646,-500.0,0.00010271,2]
[348937298,1736879447656,-500.0,0.00010271,2]
[348937299,1736879447665,-500.0,0.00010271,2]
[348937300,1736879447677,-500.0,0.00010271,2]
[348937301,1736879447689,-500.0,0.00010271,2]
[348937302,1736879447699,-500.0,0.00010271,2]
[348937303,1736879447710,-500.0,0.00010271,2]
[348937304,1736879447720,-500.0,0.00010271,2]
[348937305,1736879447730,-500.0,0.00010271,2]
[348937306,1736879447740,-500.0,0.00010271,2]
[348937307,1736879447750,-500.0,0.00010271,2]
[348937308,1736879447759,-500.0,0.00010271,2]
[348937309,1736879447962,-500.0,0.00010271,2]
[348937310,1736879447972,-500.0,0.00010271,2]
[348937311,1736879447983,-500.0,0.00010271,2]
[348937312,1736879447992,-503.61121686,0.00010271,2]
[348937313,1736879448001,-535.03,0.00010271,2]
[348937314,1736879448011,-500.0,0.00010271,2]
[348937315,1736879448020,-500.0,0.00010271,2]
[348937316,1736879448030,-500.0,0.00010271,2]
[348937317,1736879448039,-503.31562431,0.00010271,2]
[348937318,1736879448051,-612.95878744,0.00010271,2]
[348937319,1736879448061,-500.0,0.00010271,2]
[348937320,1736879448071,-500.0,0.00010271,2]
[348937321,1736879448081,-500.0,0.00010271,2]
[348937322,1736879448091,-500.0,0.00010271,2]
[348937323,1736879448101,-500.0,0.00010271,2]
[348937324,1736879448111,-500.0,0.00010271,2]
[348937325,1736879448120,-500.0,0.00010271,2]
[348937326,1736879448130,-500.0,0.00010271,2]
[348937327,1736879448140,-500.0,0.00010271,2]
[348937328,1736879448149,-500.41546366,0.00010271,2]
[348937329,1736879448159,-500.0,0.00010271,2]
[348937330,1736879448168,-500.0,0.00010271,2]
[348937331,1736879448178,-500.0,0.00010271,2]
[348937332,1736879448188,-500.0,0.00010271,2]
[348937333,1736879448208,-500.0,0.00010271,2]
[348937334,1736879448220,-500.0,0.00010271,2]
[348937335,1736879448230,-500.0,0.00010271,2]
[348937336,1736879448240,-249.48992879,0.00010271,2]
[348937337,1736879448251,-500.0,0.00010271,2]
[348937338,1736879448262,-634.16,0.00010271,2]
[348937339,1736879448272,-500.0,0.00010271,2]
[348937340,1736879448282,-500.0,0.00010271,2]
[348937341,1736879448291,-195.12331492,0.00010271,2]
[348937342,1736879448301,-500.0,0.00010271,2]
[348937343,1736879448311,-500.0,0.00010271,2]
[348937344,1736879448321,-500.0,0.00010271,2]
[348937345,1736879448332,-500.0,0.00010271,2]
[348937346,1736879448342,-500.0,0.00010271,2]
[348937347,1736879448352,-500.0,0.00010271,2]
[348937348,1736879448362,-500.0,0.00010271,2]
[348937349,1736879448373,-663.01,0.00010271,2]
[348937350,1736879448383,-500.0,0.00010271,2]
[348937351,1736879448392,-500.0,0.00010271,2]
[348937352,1736879448403,-500.0,0.00010271,2]
[348937353,1736879448413,-500.0,0.00010271,2]
[348937354,1736879448423,-500.0,0.00010271,2]
[348937355,1736879448434,-500.0,0.00010271,2]
[348937356,1736879448445,-500.0,0.00010271,2]
[348937357,1736879448455,-513.84559357,0.00010271,2]
[348937358,1736879448466,-502.84763972,0.00010271,2]
[348937359,1736879448476,-500.0,0.00010271,2]
[348937360,1736879448487,-500.0,0.00010271,2]
[348937361,1736879448497,-500.0,0.00010271,2]
[348937362,1736879448508,-500.0,0.00010271,2]
[348937363,1736879448518,-500.0,0.00010271,2]
[348937364,1736879448528,-500.0,0.00010271,2]
[348937365,1736879448538,-500.0,0.00010271,2]
[348937366,1736879448550,-500.9955461,0.00010271,2]
[348937367,1736879448561,-507.02323531,0.00010271,2]
[348937368,1736879448571,-500.0,0.00010271,2]
[348937369,1736879448582,-502.37593126,0.00010271,2]
[348937370,1736879448593,-500.0,0.00010271,2]
[348937371,1736879448603,-500.0,0.00010271,2]
[348937372,1736879448613,-500.0,0.00010271,2]
[348937373,1736879448623,-500.0,0.00010271,2]
[348937374,1736879448634,-500.0,0.00010271,2]
[348937375,1736879448644,-500.0,0.00010271,2]
[348937376,1736879448653,-500.0,0.00010271,2]
[348937377,1736879448664,-518.40687837,0.00010271,2]
[348937378,1736879448673,-500.0,0.00010271,2]
[348937379,1736879448685,-500.0,0.00010271,2]
[348937380,1736879448694,-500.0,0.00010271,2]
[348937381,1736879448704,-500.0,0.00010271,2]
[348937382,1736879448713,-502.08122955,0.00010271,2]
[348937383,1736879448723,-500.0,0.00010271,2]
[348937384,1736879448733,-500.9300321,0.00010271,2]
[348937385,1736879448743,-500.0,0.00010271,2]
[348937386,1736879448753,-501.34698877,0.00010271,2]
[348937387,1736879448763,-500.0,0.00010271,2]
[348937388,1736879448774,-500.0,0.00010271,2]
[348937389,1736879448784,-500.0,0.00010271,2]
[348937390,1736879448796,-500.0,0.00010271,2]
[348937391,1736879448805,-500.0,0.00010271,2]
[348937392,1736879448815,-500.0,0.00010271,2]
[348937393,1736879448825,-500.0,0.00010271,2]
[348937394,1736879448835,-500.0,0.00010271,2]
[348937395,1736879448845,-619.49750121,0.00010271,2]
[348937396,1736879448855,-484.86272144,0.00010271,2]
[348937397,1736879448864,-500.0,0.00010271,2]
[348937398,1736879448875,-500.0,0.00010271,2]
[348937399,1736879448885,-502.17902078,0.00010271,2]
[348937400,1736879448895,-511.64512988,0.00010271,2]
[348937401,1736879448905,-500.0,0.00010271,2]
[348937402,1736879448914,-500.0,0.00010271,2]
[348937403,1736879448924,-500.0,0.00010271,2]
[348937404,1736879448934,-500.0,0.00010271,2]
[348937405,1736879448944,-500.0,0.00010271,2]
[348937406,1736879448954,-500.0,0.00010271,2]
[348937407,1736879448963,-501.29193972,0.00010271,2]
[348937408,1736879448973,-500.0,0.00010271,2]
[348937409,1736879448983,-500.55430696,0.00010271,2]
[348937410,1736879448993,-500.96814898,0.00010271,2]
[348937411,1736879449003,-503.48432863,0.00010271,2]
[348937412,1736879449012,-505.90252342,0.00010271,2]
[348937413,1736879449023,-500.0,0.00010271,2]
[348937414,1736879449032,-501.98959815,0.00010271,2]
[348937415,1736879449042,-502.79418284,0.00010271,2]
[348937416,1736879449054,-500.0,0.00010271,2]
[348937417,1736879449064,-500.0,0.00010271,2]
[348937418,1736879449073,-500.0,0.00010271,2]
[348937419,1736879449083,-503.53754687,0.00010271,2]
[348937420,1736879449093,-500.0,0.00010271,2]
[348937421,1736879449103,-591.43,0.00010271,2]
[348937422,1736879449112,-500.0,0.00010271,2]
[348937423,1736879449122,-500.0,0.00010271,2]
[348937424,1736879449131,-500.0,0.00010271,2]
[348937425,1736879449141,-500.0,0.00010271,2]
[348937426,1736879449150,-500.0,0.00010271,2]
[348937427,1736879449160,-526.22835639,0.00010271,2]
[348937428,1736879449169,-500.0,0.00010271,2]
[348937429,1736879449178,-500.0,0.00010271,2]
[348937430,1736879449188,-500.0,0.00010271,2]
[348937431,1736879449197,-510.54437556,0.00010271,2]
[348937432,1736879449206,-500.0,0.00010271,2]
[348937433,1736879449216,-500.0,0.00010271,2]
[348937434,1736879449225,-500.0,0.00010271,2]
[348937435,1736879449234,-500.0,0.00010271,2]
[348937436,1736879449244,-500.0,0.00010271,2]
[348937437,1736879449254,-500.0,0.00010271,2]
[348937438,1736879449264,-500.0,0.00010271,2]
[348937439,1736879449273,-500.0,0.00010271,2]
[348937440,1736879449283,-592.51,0.00010271,2]
[348937441,1736879449292,-500.0,0.00010271,2]
[348937442,1736879449303,-500.0,0.00010271,2]
[348937443,1736879449312,-500.0,0.00010271,2]
[348937444,1736879449322,-500.0,0.00010271,2]
[348937445,1736879449332,-500.0,0.00010271,2]
[348937446,1736879449341,-500.0,0.00010271,2]
[348937447,1736879449351,-540.41,0.00010271,2]
[348937448,1736879449360,-726.39,0.00010271,2]
[348937449,1736879449370,-525.66,0.00010271,2]